bitfinex/quotes_SOLUSD_20260211
["timestamp","ask_amount","ask_price","bid_price","bid_amount"]
[1770812679335,3.3668849,81.52,81.48,3.3668849]
[1770812679336,0.856059,81.517,81.48,3.3668849]
[1770812681225,0.856059,81.517,81.481,12.27279979]
[1770812681426,0.856059,81.515,81.49,3.3668849]
[1770812681825,0.856059,81.515,81.481,12.27279979]
[1770812682034,0.856059,81.515,81.49,3.3668849]
[1770812682634,3.3668849,81.53,81.481,12.27279979]
[1770812682635,12.26632648,81.524,81.5,3.3668849]
[1770812683132,12.26569466,81.529,81.51,3.3668849]
[1770812683534,0.856059,81.538,81.52,3.3668849]
[1770812684725,12.26376914,81.541,81.52,3.3668849]
[1770812685743,13.11982814,81.541,81.51,3.3668849]
[1770812686042,0.856059,81.54,81.51,3.3668849]
[1770812686220,0.856059,81.54,81.52,3.3668849]
[1770812686423,0.856059,81.54,81.51,3.3668849]
[1770812686925,0.856059,81.54,81.52,3.3668849]
[1770812688229,13.12012895,81.539,81.52,3.3668849]
[1770812688741,0.856059,81.538,81.52,3.3668849]
[1770812688929,0.856059,81.538,81.51,3.3668849]
[1770812689437,0.856059,81.538,81.52,3.3668849]
[1770812689843,0.856059,81.538,81.51,3.3668849]
[1770812690445,0.856059,81.538,81.512,12.26802554]
[1770812690622,0.856059,81.536,81.512,12.26802554]
[1770812690827,0.856059,81.536,81.51,3.3668849]
[1770812691532,0.856059,81.536,81.511,12.2682828]
[1770812691732,12.26437077,81.537,81.52,3.3668849]
[1770812693745,0.856059,81.536,81.51,3.3668849]
[1770812694436,0.856059,81.536,81.52,3.3668849]
[1770812694623,0.856059,81.536,81.509,12.26855404]
[1770812694624,0.856059,81.536,81.51,3.3668849]
[1770812696041,3.3668849,81.53,81.49,3.3668849]
[1770812696250,0.856059,81.529,81.491,42.38]
[1770812696825,0.856059,81.529,81.491,54.65119273]
[1770812697047,0.856059,81.529,81.5,3.3668849]
[1770812697261,0.856059,81.529,81.491,54.65119273]
[1770812697952,0.856059,81.527,81.5,3.36716666]
[1770812700034,0.856059,81.525,81.491,42.38]
[1770812700234,0.856059,81.525,81.49,15.63852903]
[1770812700849,0.856059,81.525,81.493,12.27095229]
[1770812701050,0.856059,81.519,81.485,42.4]
[1770812701252,0.856059,81.525,81.5,3.36716666]
[1770812701448,0.856059,81.519,81.485,42.4]
[1770812701831,0.856059,81.509,81.416,49.13005726]
[1770812702036,3.36716666,81.52,81.45,3.36716666]
[1770812702037,0.856059,81.487,81.45,3.36716666]
[1770812702236,12.27099615,81.493,81.47,3.36716666]
[1770812702441,0.856059,81.515,81.48,3.36716666]
[1770812702756,0.856059,81.515,81.49,3.36716666]
[1770812703530,0.856059,81.539,81.5,3.36716666]
[1770812703737,0.856059,81.539,81.497,17.14]
[1770812703951,0.856059,81.539,81.5,3.36716666]
[1770812704144,0.856059,81.537,81.501,12.2697881]
[1770812705461,0.856059,81.537,81.5,3.36716666]
[1770812705658,0.856059,81.519,81.478,30.68303659]
[1770812705853,0.856059,81.519,81.482,42.38]
[1770812706241,0.856059,81.509,81.47,3.36716666]
[1770812706649,0.856059,81.509,81.461,41.4]
[1770812706962,0.856059,81.499,81.464,12.27521981]
[1770812708269,48.94716666,81.51,81.473,12.27400023]
[1770812708270,0.856059,81.507,81.473,12.27400023]
[1770812708960,0.856059,81.507,81.47,3.36908874]
[1770812709164,0.856059,81.507,81.471,12.27430619]
[1770812709671,0.856059,81.507,81.47,42.4]
[1770812709849,0.856059,81.507,81.47,45.76908874]
[1770812710170,0.856059,81.507,81.47,58.04343198]
[1770812710367,0.856059,81.505,81.47,15.64343198]
[1770812710569,0.856059,81.505,81.471,42.4]
[1770812711269,0.856059,81.505,81.47,15.64343198]
[1770812711583,0.856059,81.505,81.472,42.42]
[1770812712288,0.856059,81.503,81.472,42.42]
[1770812712652,0.856059,81.503,81.462,12.27562669]
[1770812712863,0.856059,81.499,81.463,42.42]
[1770812713264,0.856059,81.499,81.465,12.27510708]
[1770812713477,12.26846968,81.51,81.473,12.27400488]
[1770812713661,0.856059,81.509,81.473,12.27400488]
[1770812714374,0.856059,81.507,81.475,12.27370359]
[1770812714581,0.856059,81.507,81.476,42.42]
[1770812714752,0.856059,81.515,81.48,3.36908874]
[1770812714957,0.856059,81.522,81.49,3.36908874]
[1770812715372,0.856059,81.531,81.49,3.36908874]
[1770812716479,0.856059,81.529,81.491,12.27129376]
[1770812717379,0.856059,81.529,81.491,54.71129376]
[1770812717689,0.856059,81.529,81.491,42.44]
[1770812718382,0.856059,81.529,81.492,12.27114317]
[1770812718595,0.856059,81.529,81.5,3.36908874]
[1770812720176,0.856059,81.529,81.501,12.2697881]
[1770812722354,12.26572465,81.528,81.501,12.2697881]
[1770812723185,0.856059,81.527,81.501,12.2697881]
[1770812728868,12.26525753,81.532,81.51,3.36908874]
[1770812729081,0.856059,81.531,81.501,12.2697881]
[1770812729479,0.856059,81.531,81.501,42.94425835]
[1770812730389,12.26423413,81.538,81.502,42.52]
[1770812730585,13.12029313,81.538,81.51,3.36908874]
[1770812730884,0.856059,81.537,81.511,12.2682828]
[1770812731088,0.856059,81.535,81.511,12.2682828]
[1770812733086,12.26482203,81.534,81.503,12.26938189]
[1770812733290,0.856059,81.533,81.503,12.26938189]
[1770812735397,0.856059,81.529,81.503,12.26938189]
[1770812735693,0.856059,81.519,81.49,42.58]
[1770812737375,0.856059,81.509,81.46,34.05872802]
[1770812737581,0.856059,81.509,81.481,12.27267006]
[1770812738499,0.856059,81.509,81.464,42.58]
[1770812738695,0.856059,81.509,81.472,12.27410959]
[1770812738898,0.856059,81.509,81.47,3.36908874]
[1770812739408,0.856059,81.507,81.471,12.27430619]
[1770812740283,0.856059,81.507,81.471,42.96007167]
[1770812740482,0.856059,81.507,81.471,12.27430619]
[1770812741605,12.26873435,81.508,81.466,42.6]
[1770812741606,0.856059,81.505,81.466,42.6]
[1770812741799,0.856059,81.505,81.47,3.36908874]
[1770812742602,12.26933647,81.504,81.471,12.27430619]
[1770812742905,0.856059,81.503,81.471,12.27430619]
[1770812743300,0.856059,81.503,81.462,12.27558721]
[1770812743505,42.94267765,81.504,81.462,12.27558721]
[1770812743506,0.856059,81.499,81.462,12.27558721]
[1770812745393,0.856059,81.497,81.454,12.27686792]
[1770812745807,0.856059,81.489,81.454,12.27686792]
[1770812747192,0.856059,81.489,81.453,42.62]
[1770812747998,49.06977429,81.517,81.428,12.28070229]
[1770812747999,0.856059,81.469,81.428,12.28070229]
[1770812748314,42.95110936,81.488,81.4,0.2]
[1770812748315,0.856059,81.459,81.431,12.28028369]
[1770812748697,0.856059,81.459,81.435,12.27972813]
[1770812748905,0.856059,81.459,81.43,3.36908874]
[1770812749698,0.856059,81.459,81.42,34.07384228]
[1770812750296,0.856059,81.458,81.421,30.70460937]
[1770812750617,0.856059,81.477,81.44,3.36908874]
[1770812750909,0.856059,81.477,81.441,42.68]
[1770812751319,0.856059,81.477,81.44,3.36908874]
[1770812751521,0.856059,81.477,81.441,42.68]
[1770812751704,0.856059,81.477,81.442,42.68]
[1770812752315,0.856059,81.475,81.442,42.68]
[1770812752499,0.856059,81.469,81.442,42.68]
[1770812754017,0.856059,81.468,81.443,12.27852608]
[1770812754806,12.27310104,81.479,81.443,42.97484129]
[1770812755116,0.856059,81.485,81.45,3.36908874]
[1770812756322,0.856059,81.485,81.451,42.97062036]
[1770812757400,5.13032502,81.503,81.451,42.97062036]
[1770812757401,0.856059,81.496,81.46,3.36908874]
[1770812757716,0.856059,81.496,81.461,42.74]
[1770812758015,0.856059,81.489,81.461,42.74]
[1770812758414,0.856059,81.487,81.462,12.27566227]
[1770812759003,0.856059,81.487,81.463,42.76]
[1770812760720,0.856059,81.485,81.463,42.76]
[1770812761220,0.856059,81.479,81.463,42.76]
[1770812761525,0.856059,81.479,81.46,12.2759588]
[1770812761698,0.856059,81.479,81.456,12.27649859]
[1770812762106,0.856059,81.479,81.456,42.8]
[1770812763209,0.856059,81.485,81.456,42.8]
[1770812763834,12.27180685,81.488,81.46,4.17072048]
[1770812764035,0.856059,81.509,81.47,4.17072048]
[1770812764328,0.856059,81.507,81.471,55.09430619]
[1770812765306,0.856059,81.505,81.471,55.09430619]
[1770812766209,0.856059,81.511,81.48,4.17072048]
[1770812766409,0.856059,81.528,81.49,4.17072048]
[1770812766627,0.856059,81.528,81.491,42.84]
[1770812768223,0.856059,81.526,81.492,12.27114317]
[1770812768425,0.856059,81.519,81.492,12.27114317]
[1770812768833,0.856059,81.509,81.486,42.82]
[1770812769129,0.856059,81.509,81.479,42.82]
[1770812769438,0.856059,81.509,81.462,30.68908484]
[1770812769439,0.856059,81.509,81.475,12.27364088]
[1770812769817,0.856059,81.509,81.47,16.44359254]
[1770812770232,4.16917814,81.51,81.47,16.44359254]
[1770812770233,0.856059,81.507,81.47,16.44359254]
[1770812770925,0.856059,81.499,81.467,42.82]
[1770812771132,0.856059,81.499,81.47,4.16917814]
[1770812772226,12.27023976,81.498,81.471,12.27430619]
[1770812772419,0.856059,81.497,81.471,12.27430619]
[1770812773319,0.856059,81.497,81.462,12.27560877]
[1770812774134,0.856059,81.489,81.451,12.2772799]
[1770812774331,0.856059,81.487,81.454,12.27677231]
[1770812775438,12.27174553,81.488,81.47,4.16917814]
[1770812775825,12.27174553,81.488,81.46,4.16917814]
[1770812776135,0.856059,81.487,81.46,4.16917814]
[1770812776840,0.856059,81.487,81.461,12.27581296]
[1770812777234,0.856059,81.485,81.461,12.27581296]
[1770812778825,0.856059,81.483,81.456,12.27656648]
[1770812779331,0.856059,81.483,81.46,4.16917814]
[1770812781245,0.856059,81.483,81.461,12.27581296]
[1770812781942,0.856059,81.481,81.455,42.86]
[1770812784437,0.856059,81.479,81.455,55.13661179]
[1770812784630,12.27185307,81.488,81.46,4.16917814]
[1770812784837,12.27185307,81.488,81.46,47.12917814]
[1770812785442,12.27185307,81.488,81.46,42.96]
[1770812785761,13.12791207,81.488,81.46,47.12917814]
[1770812787155,13.12791207,81.488,81.461,12.27581296]
[1770812787335,0.856059,81.487,81.461,12.27581296]
[1770812789547,0.856059,81.485,81.461,12.27581296]
[1770812789953,0.856059,81.479,81.451,12.27723802]
[1770812791143,0.856059,81.479,81.45,4.16917814]
[1770812791444,0.856059,81.477,81.447,30.69444291]
[1770812791736,0.856059,81.477,81.451,12.2773201]
[1770812793758,12.27355294,81.476,81.451,12.2773201]
[1770812793952,0.856059,81.475,81.451,12.2773201]
[1770812795973,0.856059,81.491,81.46,4.16917814]
[1770812796452,0.856059,81.489,81.45,4.16917814]
[1770812796642,0.856059,81.489,81.45,12.27733418]
[1770812796840,0.856059,81.489,81.45,16.44651232]
[1770812797254,0.856059,81.489,81.45,59.50651232]
[1770812798242,0.856059,81.487,81.45,59.50651232]
[1770812799446,0.856059,81.499,81.47,4.16917814]
[1770812800242,0.856059,81.488,81.45,16.44651232]
[1770812800443,0.856059,81.488,81.45,4.16917814]
[1770812800946,0.856059,81.479,81.448,43.08]
[1770812801347,0.856059,81.469,81.439,12.27904882]
[1770812801554,0.856059,81.469,81.433,12.27995129]
[1770812801953,0.856059,81.459,81.433,12.27995129]
[1770812802158,0.856059,81.459,81.43,4.16917814]
[1770812802386,0.856059,81.457,81.431,12.28033549]
[1770812804146,12.2756804,81.462,81.431,12.28033549]
[1770812804461,0.856059,81.462,81.431,12.28033549]
[1770812807571,0.856059,81.449,81.428,43.08]
[1770812808075,0.856059,81.459,81.428,43.08]
[1770812808651,0.856059,81.459,81.43,4.16917814]
[1770812809171,0.856059,81.457,81.428,43.08]
[1770812810471,0.856059,81.455,81.428,43.08]
[1770812812365,12.27686792,81.454,81.423,12.28147763]
[1770812812573,0.856059,81.453,81.423,12.28147763]
[1770812813762,12.27716937,81.452,81.43,4.16917814]
[1770812814772,13.13322837,81.452,81.43,4.16917814]
[1770812814967,0.856059,81.451,81.43,4.16917814]
[1770812815169,0.856059,81.451,81.423,12.28147763]
[1770812817182,12.27747084,81.45,81.423,12.28147763]
[1770812817413,0.856059,81.449,81.423,12.28147763]
[1770812817985,0.856059,81.449,81.421,43.2]
[1770812818190,0.856059,81.439,81.414,55.52275048]
[1770812818994,4.1747269,81.44,81.4,0.2]
[1770812818995,0.856059,81.419,81.4,0.2]
[1770812819288,0.756059,81.417,81.381,12.28788046]
[1770812819488,0.756059,81.417,81.381,12.32562789]
[1770812819678,0.756059,81.409,81.381,12.32562789]
[1770812820389,0.756059,81.409,81.38,0.2]
[1770812820886,0.756059,81.409,81.381,12.28788046]
[1770812821470,12.28380503,81.408,81.381,12.28788046]
[1770812821675,0.756059,81.407,81.381,12.28788046]
[1770812822575,0.756059,81.399,81.38,0.2]
[1770812824392,0.756059,81.389,81.37,0.2]
[1770812825795,0.756059,81.387,81.37,0.2]
[1770812826294,0.756059,81.403,81.38,0.03691738]
[1770812826599,0.756059,81.399,81.373,0.03691738]
[1770812827290,0.756059,81.419,81.381,0.0368135]
[1770812827489,0.756059,81.418,81.391,0.0368135]
[1770812827984,0.756059,81.418,81.382,0.0368135]
[1770812828794,0.756059,81.399,81.37,4.3747269]
[1770812828986,0.756059,81.399,81.37,0.2]
[1770812829186,0.756059,81.389,81.36,0.2]
[1770812829571,4.1747269,81.38,81.36,0.2]
[1770812829888,0.756059,81.379,81.36,0.2]
[1770812830292,0.756059,81.389,81.361,0.03647881]
[1770812830478,12.28629204,81.392,81.37,4.21120571]
[1770812830879,12.28629204,81.392,81.37,4.21710015]
[1770812831788,0.756059,81.404,81.381,0.0363582]
[1770812831978,0.756059,81.404,81.38,4.18062134]
[1770812832595,0.756059,81.404,81.374,0.0363582]
[1770812832896,0.756059,81.399,81.365,43.32]
[1770812833597,0.756059,81.389,81.366,12.29006829]
[1770812834102,0.756059,81.388,81.366,12.29006829]
[1770812834275,0.756059,81.388,81.365,43.32]
[1770812835584,0.756059,81.388,81.365,55.6102598]
[1770812838318,0.756059,81.386,81.365,43.32]
[1770812838804,12.28697457,81.387,81.341,12.29386244]
[1770812838805,0.756059,81.379,81.341,12.29386244]
[1770812839383,0.756059,81.379,81.344,12.29342488]
[1770812839580,4.18062134,81.37,81.344,12.29342488]
[1770812839802,0.756059,81.369,81.344,12.29342488]
[1770812843124,0.756059,81.367,81.34,0.2]
[1770812843322,0.756059,81.367,81.341,12.29392311]
[1770812843986,0.756059,81.373,81.35,4.18062134]
[1770812844304,0.756059,81.389,81.36,4.18062134]
[1770812844487,12.28501186,81.401,81.38,4.18062134]
[1770812844688,12.28501186,81.401,81.371,43.44]
[1770812845197,12.28501186,81.401,81.373,0.03480244]
[1770812845395,0.756059,81.4,81.38,4.18062134]
[1770812845595,0.756059,81.408,81.39,4.18062134]
[1770812845804,12.28332731,81.412,81.39,4.18062134]
[1770812846196,0.75618592,81.411,81.387,0.03470227]
[1770812847199,12.28350325,81.41,81.387,0.03470227]
[1770812847804,12.28350325,81.41,81.39,4.18062134]
[1770812848001,0.75618592,81.413,81.39,4.18062134]
[1770812848922,0.75618592,81.419,81.391,0.0344192]
[1770812849816,12.28229629,81.418,81.391,0.0344192]
[1770812849995,0.75618592,81.417,81.39,47.62062134]
[1770812850194,0.75618592,81.417,81.39,4.18062134]
[1770812851125,0.75618592,81.417,81.386,43.44]
[1770812851295,0.75618592,81.417,81.247,27.27770858]
[1770812851296,0.75618592,81.409,81.375,0.03413869]
[1770812851495,0.75618592,81.407,81.375,0.03413869]
[1770812851696,0.75618592,81.407,81.38,4.18062134]
[1770812851920,0.75618592,81.439,81.4,4.18062134]
[1770812852302,0.75618592,81.429,81.4,4.18062134]
[1770812853316,0.75618592,81.439,81.42,4.18062134]
[1770812855199,0.75618592,81.444,81.42,4.18062134]
[1770812857304,12.27762157,81.449,81.421,0.03359751]
[1770812857504,12.27762157,81.449,81.43,0.03359751]
[1770812857827,12.27762157,81.449,81.43,4.18062134]
[1770812858409,0.76858439,81.449,81.43,4.18062134]
[1770812858730,0.76858439,81.449,81.424,12.28133559]
[1770812859032,0.76858439,81.449,81.427,12.28087191]
[1770812859226,0.76858439,81.463,81.431,12.28033549]
[1770812859517,0.76858439,81.478,81.44,4.18062134]
[1770812860722,0.76858439,81.476,81.441,12.27882761]
[1770812861327,0.76858439,81.469,81.44,4.18062134]
[1770812861528,0.76858439,81.469,81.441,12.27882761]
[1770812863225,0.76858439,81.469,81.45,4.18062134]
[1770812864637,0.76858439,81.476,81.45,4.18062134]
[1770812865127,0.76858439,81.476,81.451,12.2773201]
[1770812865927,0.76858439,81.469,81.444,12.27835315]
[1770812867315,0.76858439,81.468,81.444,12.27835315]
[1770812869036,0.76858439,81.468,81.44,16.45950311]
[1770812869913,0.76858439,81.466,81.44,16.45950311]
[1770812870112,0.76858439,81.466,81.436,43.46]
[1770812871209,0.76858439,81.459,81.42,4.18062134]
[1770812871810,0.76858439,81.457,81.42,4.18062134]
[1770812872010,0.76858439,81.457,81.421,12.28184375]
[1770812872227,0.76858439,81.457,81.43,4.18062134]
[1770812873534,0.76858439,81.455,81.43,4.18062134]
[1770812874239,0.76858439,81.455,81.431,12.28033549]
[1770812874741,0.76858439,81.455,81.43,4.18062134]
[1770812875441,0.76858439,81.455,81.431,12.28033549]
[1770812875626,0.76858439,81.458,81.431,12.28033549]
[1770812875824,12.27551158,81.463,81.44,4.18062134]
[1770812876022,0.76858439,81.464,81.44,4.18062134]
[1770812876843,0.76858439,81.471,81.44,4.18062134]
[1770812877251,4.28062134,81.48,81.45,4.18062134]
[1770812877252,0.76858439,81.477,81.45,4.18062134]
[1770812877483,0.1,81.48,81.46,4.18062134]
[1770812878137,0.1,81.48,81.461,12.27581296]
[1770812879124,0.86858439,81.48,81.461,12.27581296]
[1770812881426,0.86858439,81.48,81.451,43.56]
[1770812881628,0.76858439,81.478,81.44,4.18062134]
[1770812882050,0.76858439,81.478,81.445,12.27820176]
[1770812882253,0.1,81.48,81.46,4.18062134]
[1770812882443,0.1,81.48,81.46,16.45649569]
[1770812882756,0.1,81.48,81.46,4.18062134]
[1770812883458,12.27310104,81.479,81.46,4.18062134]
[1770812883665,0.1,81.48,81.46,4.18062134]
[1770812883666,0.76858439,81.478,81.46,4.18062134]
[1770812883962,0.76858439,81.478,81.451,12.27717094]
[1770812884650,0.76858439,81.478,81.454,12.27674083]
[1770812884947,0.76858439,81.478,81.422,61.40830792]
[1770812884948,0.76858439,81.478,81.3,66.51921572]
[1770812885150,0.1,81.48,81.25,7.68496532]
[1770812885151,0.76858439,81.473,81.364,17.44]
[1770812885447,0.76858439,81.469,81.43,4.18062134]
[1770812885748,0.76858439,81.467,81.44,4.18062134]
[1770812887146,0.76858439,81.467,81.432,12.28013866]
[1770812888153,0.76858439,81.465,81.44,4.18062134]
[1770812888353,0.76858439,81.465,81.432,12.28013866]
[1770812888555,12.27441606,81.471,81.45,4.18062134]
[1770812889851,0.76858439,81.471,81.45,4.18062134]
[1770812890455,0.76858439,81.478,81.45,4.18062134]
[1770812890642,0.1,81.48,81.46,4.18062134]
[1770812891355,0.1,81.48,81.47,4.18062134]
[1770812892551,0.1,81.48,81.463,12.27548469]
[1770812893546,0.1,81.48,81.47,4.17027396]
[1770812893868,0.76858439,81.502,81.47,4.17027396]
[1770812894042,0.76858439,81.502,81.48,4.17027396]
[1770812894446,0.76858439,81.502,81.47,4.17027396]
[1770812894966,0.76858439,81.5,81.48,4.17027396]
[1770812895140,0.76858439,81.5,81.473,12.27399221]
[1770812895463,0.76858439,81.5,81.47,4.17027396]
[1770812895767,0.76858439,81.5,81.472,12.27407757]
[1770812896056,0.76858439,81.5,81.47,4.17027396]
[1770812896232,0.76858439,81.5,81.473,12.27398663]
[1770812897237,0.76858439,81.498,81.473,11.5022117]
[1770812897440,12.2700892,81.499,81.357,0.77175395]
[1770812897441,8.34054792,81.48,81.357,0.77175395]
[1770812897650,45.58,81.497,81.341,0.77175395]
[1770812897651,4.17027396,81.38,81.341,0.77175395]
[1770812897852,4.87684923,81.362,81.36,4.17027396]
[1770812898051,2.93338327,81.362,81.36,4.17027396]
[1770812898363,2.93338327,81.362,81.322,17.16]
[1770812898364,2.93338327,81.362,81.35,4.17027396]
[1770812898653,2.93338327,81.362,81.341,12.29390387]
[1770812899438,2.93338327,81.362,81.35,11.20313339]
[1770812899645,2.93338327,81.362,81.341,12.29390387]
[1770812899838,2.93338327,81.362,81.351,44.02]
[1770812900542,2.93338327,81.362,81.352,44.02]
[1770812901467,2.91041028,81.362,81.353,12.29210969]
[1770812901765,2.91041028,81.362,81.354,44.04]
[1770812902655,2.91041028,81.362,81.355,44.06]
[1770812902837,2.91041028,81.362,81.352,12.29218252]
[1770812903037,2.91041028,81.362,81.353,44.06]
[1770812903237,12.28909443,81.373,81.353,44.06]
[1770812903858,0.78324045,81.373,81.353,44.06]
[1770812904943,0.78324045,81.389,81.354,12.2919586]
[1770812905149,0.78324045,81.389,81.355,44.08]
[1770812906261,0.78324045,81.387,81.354,12.2919586]
[1770812906465,0.78324045,81.387,81.356,44.08]
[1770812908775,0.78324045,81.387,81.36,11.20313339]
[1770812908955,12.28712554,81.386,81.357,12.32574794]
[1770812909154,13.07036599,81.386,81.357,12.32574794]
[1770812909358,12.28712554,81.386,81.357,12.32574794]
[1770812909578,0.78324045,81.385,81.357,12.32574794]
[1770812911578,12.2874275,81.384,81.357,12.32574794]
[1770812911780,13.07066795,81.384,81.357,12.32574794]
[1770812912280,0.78324045,81.383,81.357,12.32574794]
[1770812912488,12.2874275,81.384,81.358,0.05024189]
[1770812912877,12.28667264,81.389,81.358,0.05024189]
[1770812913378,13.06991309,81.389,81.358,0.05024189]
[1770812913580,0.78324045,81.388,81.358,0.05024189]
[1770812913786,0.78324045,81.388,81.357,12.29150534]
[1770812913787,0.78324045,81.388,81.357,11.97269101]
[1770812915014,0.80836139,81.399,81.36,11.20313339]
[1770812915279,0.80836139,81.399,81.357,11.97269101]
[1770812915280,0.31510411,81.388,81.37,11.20313339]
[1770812915663,0.31510411,81.388,81.361,44.16]
[1770812916379,0.31510411,81.388,81.362,44.18]
[1770812916983,0.31510411,81.388,81.37,11.20313339]
[1770812917171,0.80836139,81.417,81.38,11.20313339]
[1770812918075,0.80836139,81.417,81.381,0.02282227]
[1770812918678,0.80836139,81.389,81.351,30.73074859]
[1770812918871,0.80836139,81.389,81.352,44.22]
[1770812919059,12.28682361,81.388,81.352,44.22]
[1770812919258,4.1819048,81.38,81.354,0.02647403]
[1770812919462,0.80836139,81.379,81.352,56.51218106]
[1770812920880,0.80836139,81.359,81.355,43.41658899]
[1770812921269,0.80836139,81.359,81.355,41.03674622]
[1770812921474,12.29087053,81.362,81.355,39.41582604]
[1770812921669,12.29087053,81.362,81.34,0.2]
[1770812921888,4.1819048,81.35,81.341,44.24]
[1770812922087,4.1819048,81.36,81.341,44.24]
[1770812922867,11.21074955,81.36,81.341,45.0655097]
[1770812923084,12.28969263,81.369,81.343,0.8255097]
[1770812923266,12.28969263,81.369,81.344,44.24]
[1770812923875,11.21074955,81.36,81.344,44.24]
[1770812925586,12.29025564,81.366,81.344,44.24]
[1770812925791,11.21074955,81.36,81.344,44.24]
[1770812926672,11.21074955,81.35,81.344,44.24]
[1770812929093,12.2927141,81.349,81.34,0.2]
[1770812929293,12.2927141,81.349,81.33,0.2]
[1770812929495,11.21074955,81.34,81.32,0.2]
[1770812929795,11.21074955,81.33,81.321,44.3]
[1770812930799,11.21074955,81.34,81.321,44.3]
[1770812931295,12.2942254,81.339,81.321,44.3]
[1770812931595,11.21074955,81.36,81.322,0.84864679]
[1770812933279,23.50180239,81.36,81.324,0.84864679]
[1770812933489,12.29037572,81.365,81.331,0.84864679]
[1770812933795,12.29037572,81.365,81.33,11.21074955]
[1770812933796,23.50039424,81.37,81.333,0.84864679]
[1770812934001,12.28964469,81.37,81.341,0.84864679]
[1770812934497,12.28824079,81.379,81.341,0.84864679]
[1770812935295,11.21074955,81.38,81.351,0.84864679]
[1770812935482,12.28818245,81.379,81.353,0.84864679]
[1770812935802,12.28818245,81.379,81.354,44.32]
[1770812936301,12.28818245,81.379,81.355,44.32]
[1770812936498,12.28818245,81.379,81.356,44.32]
[1770812938179,12.28818245,81.379,81.354,0.83293048]
[1770812938386,12.28818245,81.379,81.355,44.34]
[1770812938885,12.28818245,81.379,81.356,44.34]
[1770812939288,12.28818245,81.379,81.357,44.34]
[1770812941204,11.20561338,81.37,81.357,44.34]
[1770812941405,0.771916,81.378,81.357,44.34]
[1770812943810,0.771916,81.378,81.358,44.38]
[1770812944006,11.20561338,81.37,81.358,44.38]
[1770812944211,11.20561338,81.37,81.348,0.83293048]
[1770812944513,0.771916,81.369,81.349,44.4]
[1770812945685,0.771916,81.369,81.351,12.2923377]
[1770812946307,12.28848446,81.377,81.353,0.83293048]
[1770812946613,30.71808354,81.386,81.351,12.2923377]
[1770812946614,12.2876911,81.383,81.355,0.83293048]
[1770812947205,11.20561338,81.38,81.356,44.4]
[1770812947408,11.20561338,81.38,81.357,0.83293048]
[1770812947789,0.771916,81.389,81.357,0.83293048]
[1770812947995,23.49213506,81.39,81.359,0.83293048]
[1770812948798,12.28597628,81.394,81.361,0.83293048]
[1770812949498,11.20561338,81.39,81.361,0.83293048]
[1770812949697,12.28597628,81.394,81.361,0.83293048]
[1770812951108,12.28597628,81.394,81.36,55.62561338]
[1770812951109,0.771916,81.389,81.363,0.83293048]
[1770812951403,11.97752938,81.38,81.364,44.42]
[1770812951583,11.20561338,81.38,81.364,44.42]
[1770812951907,0.771916,81.387,81.365,45.25293048]
[1770812953209,0.771916,81.387,81.365,0.83293048]
[1770812953410,0.771916,81.387,81.366,44.44]
[1770812955411,12.28712554,81.386,81.366,44.44]
[1770812958416,23.48855364,81.39,81.368,0.83293048]
[1770812959913,0.771916,81.389,81.368,0.83293048]
[1770812960511,12.28682361,81.388,81.368,0.83293048]
[1770812962915,0.90175824,81.387,81.368,0.83293048]
[1770812963693,0.90175824,81.393,81.37,0.8780184]
[1770812964808,12.10368226,81.39,81.37,0.8780184]
[1770812965009,5.08335469,81.39,81.37,0.8780184]
[1770812965223,0.90175824,81.389,81.37,0.8780184]
[1770812965823,13.22342558,81.392,81.37,0.8780184]
[1770812966121,0.93720581,81.391,81.37,0.8780184]
[1770812966419,0.93720581,81.398,81.37,0.8780184]
[1770812968621,0.93720581,81.396,81.37,0.8780184]
[1770812971525,0.93720581,81.389,81.366,44.44]
[1770812971709,0.93720581,81.389,81.367,0.89280074]
[1770812972223,0.93720581,81.389,81.368,45.47280074]
[1770812972528,0.93720581,81.389,81.369,0.89280074]
[1770812973737,0.93720581,81.387,81.368,44.58]
[1770812974740,0.93720581,81.387,81.368,45.47280074]
[1770812974910,12.28633254,81.392,81.369,0.89280074]
[1770812976330,0.93720581,81.393,81.369,0.89280074]
[1770812979533,13.22236901,81.399,81.371,0.89280074]
[1770812979834,12.2851632,81.399,81.371,0.89280074]
[1770812981232,12.2851632,81.399,81.372,12.28923954]